fUSD/lending_fUSD_20240812
["ID","MTS","AMOUNT","RATE_DAILY","PERIOD"]
[334670148,1723451432184,-550.0,0.0001,2]
[334670149,1723451432194,-332.79,0.00010035,2]
[334670150,1723451432204,-250.0,0.00010102,2]
[334670151,1723451432214,-155.23,0.00010124,2]
[334670152,1723451432224,-211.02,0.00010124,2]
[334670153,1723451432233,-172.51,0.00010128,2]
[334670154,1723451432242,-1000.0,0.00010148,2]
[334670155,1723451432251,-585.34,0.00010482,2]
[334670156,1723451432262,-500.0,0.00010686,2]
[334670157,1723451432272,-1163.4710252,0.000107,2]
[334670158,1723451432283,-296.5289748,0.000107,2]
[334670159,1723451432292,-11.53537869,0.000107,2]
[334670161,1723451432304,-288.45462131,0.000107,2]
[334670163,1723451432313,-1136.0,0.00010804,2]
[334670165,1723451432322,-11731.69470113,0.0001089,2]
[334670167,1723451432331,-3000.0,0.0001089,2]
[334670168,1723451432341,-529.08,0.00010894,2]
[334670169,1723451432351,-3665.07,0.00010894,2]
[334670171,1723451432363,-1108.78,0.00010894,2]
[334670173,1723451432372,-150.0,0.00010894,2]
[334670174,1723451432381,-433.2501,0.00010895,2]
[334670176,1723451432390,-340.3042,0.00010895,2]
[334670178,1723451432400,-12017.1867,0.00010895,2]
[334670180,1723451432408,-348.13459309,0.00010899,2]
[334670181,1723451432418,-348.13459306,0.00010899,2]
[334670182,1723451432427,-348.13459306,0.00010899,2]
[334670183,1723451432436,-348.13459306,0.00010899,2]
[334670184,1723451432446,-348.13459306,0.00010899,2]
[334670185,1723451432455,-348.13459306,0.00010899,2]
[334670186,1723451432464,-348.13459306,0.00010899,2]
[334670187,1723451432474,-348.13459306,0.00010899,2]
[334670188,1723451432483,-348.13459306,0.000109,2]
[334670189,1723451432492,-1000.0,0.000109,2]
[334670190,1723451432502,-6304.0761,0.000109,2]
[334670191,1723451432524,-500.0,0.000109,2]
[334670192,1723451432533,-2739.8147,0.000109,2]
[334670193,1723451432543,-100000.0,0.000109,2]
[334670194,1723451432553,-542.457,0.000109,2]
[334670195,1723451432563,-2000.0,0.000109,2]
[334670196,1723451432572,-348.13459306,0.000109,2]
[334670197,1723451432581,-153.85974612,0.000109,2]
[334670198,1723451432591,-169.12638698,0.000109,2]
[334670199,1723451432600,-214.24609584,0.000109,2]
[334670200,1723451432609,-211.530174,0.000109,2]
[334670201,1723451432618,-807.32221772,0.000109,2]
[334670202,1723451432627,-22821.04,0.00010959,2]
[334670203,1723451432635,-250.0,0.00010959,2]
[334670204,1723451432645,-945.03826256,0.0001096,2]
[334670205,1723451432654,-450.0,0.0001096,2]
[334670206,1723451432663,-87884.23113251,0.00010996,2]
[334670219,1723451438317,-315.63403254,0.000109,2]
[334670220,1723451438337,-684.36596746,0.000109,2]
[334670221,1723451438347,-165.31634034,0.000109,2]
[334670222,1723451438361,-1139.67921284,0.00010996,2]
[334670223,1723451438373,-1670.05757638,0.00010996,2]
[334670224,1723451438385,-20265.086504,0.00010996,2]
[334670225,1723451438539,-15773.6452898,0.00010996,2]
[334670226,1723451438548,-517.4332172,0.00010997,2]
[334670227,1723451438558,-7593.7689308,0.00010997,2]
[334670228,1723451438567,-1699.548364,0.00010997,2]
[334670229,1723451438577,-295.6041982,0.00010997,2]
[334670230,1723451438809,-724.8007688,0.00010997,2]
[334670231,1723451438819,-289.0,0.00011,2]
[334670232,1723451438828,-480.577,0.00011,2]
[334670233,1723451438838,-11806.96856004,0.00011,2]
[334670234,1723451438850,-10155.31,0.00011,2]
[334670235,1723451438861,-15773.07401685,0.00011,2]
[334670275,1723451440264,-3290.0,0.00010804,2]
[334670276,1723451440275,-77990.11729762,0.00011,2]
[334670277,1723451440285,-38555.66244878,0.00011,2]
[334670278,1723451440296,-172419.67626906,0.00011,2]
[334670279,1723451440307,-320730.42854129,0.00011,2]
[334670280,1723451440326,-980.83497412,0.00011,2]
[334670306,1723451443056,-4769.26480063,0.00011,2]
[334670312,1723451443865,-500.0,0.00011,2]
[334670313,1723451443876,-1541.90064746,0.00011,2]
[334670314,1723451443889,-2759.5004898,0.00011,2]
[334670315,1723451443901,-4063.59449961,0.00011,2]
[334670316,1723451443912,-537.16417105,0.00011,2]
[334670317,1723451443925,-337.27249606,0.00011,2]
[334670318,1723451443944,-500.0,0.00011,2]
[334670319,1723451443956,-59201.82071877,0.00011,2]
[334670320,1723451443967,-146663.9011019,0.00011,2]
[334670321,1723451443980,-5338.28035314,0.00011,2]
[334670322,1723451444003,-801.46196804,0.00011,2]
[334670323,1723451444016,-3068.01660738,0.00011,2]
[334670324,1723451444031,-1471.0000031,0.00011,2]
[334670325,1723451444053,-2925.0,0.00011,2]
[334670326,1723451444065,-2279.0,0.00011,2]
[334670333,1723451446251,-247.0,0.00010804,2]
[334670334,1723451446260,-521.0,0.00011,2]
[334670335,1723451446317,-519.94092033,0.00011,2]
[334670336,1723451446329,-4904.9682,0.00011,2]
[334670337,1723451446341,-4404.46998604,0.00011,2]
[334670338,1723451446353,-494.01823917,0.00011,2]
[334670339,1723451446367,-343.68665496,0.00011,2]
[334670340,1723451446387,-2251.39048209,0.00011,2]
[334670341,1723451446398,-18687.90820847,0.00011,2]
[334670342,1723451446442,-1647.40367444,0.00011,2]
[334670343,1723451446453,-456.95008335,0.00011,2]
[334670344,1723451446464,-585.22668101,0.00011,2]
[334670345,1723451446475,-1346.51356479,0.00011,2]
[334670346,1723451446486,-584.82021014,0.00011,2]
[334670347,1723451446497,-26977.16239601,0.00011,2]
[334670348,1723451446516,-670.56,0.00011,2]
[334670349,1723451446528,-451.23409272,0.00011,2]
[334670350,1723451446566,-929.49487417,0.00011,2]
[334670351,1723451446577,-515.83635347,0.00011,2]
[334670352,1723451446588,-400.57,0.00011,2]
[334670353,1723451446599,-27493.91517875,0.00011,2]
[334670354,1723451446609,-852.18109769,0.00011,2]
[334670355,1723451446620,-3075.0,0.00011,2]
[334670356,1723451446632,-6408.14495674,0.00011,2]
[334670357,1723451446643,-3823.05,0.00011,2]
[334670358,1723451446657,-562.29758816,0.00011,2]
[334670359,1723451446668,-254960.91750192,0.00011,2]
[334670360,1723451446679,-442.00189353,0.00011,2]
[334670361,1723451446690,-305.0,0.00011,2]
[334670364,1723451490842,150.0,0.00020475,120]
[334670365,1723451502895,500.0,8.22e-05,2]
[334670366,1723451506889,500.0,8.22e-05,2]
[334670368,1723451550760,150.0,0.00026064,120]
[334670370,1723451625284,299.29,8.219e-05,2]
[334670371,1723451625304,275.78,8.219e-05,2]
[334670372,1723451655689,500.0,8.22e-05,2]
[334670373,1723451658013,265.49,9.524e-05,2]
[334670375,1723451910748,150.0,0.00026484,120]
[334670377,1723451970799,150.0,0.0002631,120]
[334670379,1723452090882,150.0,0.00025425,120]
[334670380,1723452126153,546.31,8.219e-05,2]
[334670382,1723452207097,265.49,9.497e-05,2]
[334670383,1723452271847,150.0,0.00024213,120]
[334670393,1723452356002,250.0,9.476e-05,2]
[334670394,1723452365493,500.0,9.466e-05,2]
[334670423,1723452451224,150.0,0.00026608,120]
[334670424,1723452456008,23900.0,9.444e-05,2]
[334670425,1723452510792,150.0,0.00019191,120]
[334670432,1723452567623,168.81,9.521e-05,2]
[334670433,1723452579831,518.99,8.219e-05,2]
[334670436,1723452630756,150.0,0.00023525,120]
[334670450,1723452632237,-800.0,9.673e-05,2]
[334670452,1723452632247,-161.99,9.701e-05,2]
[334670454,1723452632256,-180.61,9.844e-05,2]
[334670456,1723452632265,-150.0,9.863e-05,2]
[334670458,1723452632275,-500.0,9.864e-05,2]
[334670460,1723452632284,-500.0,9.864e-05,2]
[334670462,1723452632294,-500.0,9.864e-05,2]
[334670464,1723452632304,-1051.84018982,9.864e-05,2]
[334670466,1723452632313,-200.0,9.884e-05,2]
[334670467,1723452632322,-154.02485016,9.888e-05,2]
[334670468,1723452632332,-300.0,9.892e-05,2]
[334670469,1723452632342,-300.0,9.892e-05,2]
[334670470,1723452632353,-180.61,9.893e-05,2]
[334670471,1723452632363,-824.46,9.893e-05,2]
[334670472,1723452632373,-3211.83,9.893e-05,2]
[334670473,1723452632384,-606.64,9.893e-05,2]
[334670474,1723452632395,-2545.85,9.893e-05,2]
[334670475,1723452632406,-1801.86,9.893e-05,2]
[334670476,1723452632416,-179.66,9.986e-05,2]
[334670477,1723452632425,-173.04,9.989e-05,2]
[334670478,1723452632435,-633.03266898,9.99e-05,2]
[334670479,1723452632444,-150.0,9.999e-05,2]
[334670480,1723452632454,-500.0,0.0001,2]
[334670481,1723452632465,-500.0,0.0001,2]
[334670482,1723452632476,-500.0,0.0001,2]
[334670483,1723452632486,-500.0,0.0001,2]
[334670484,1723452632496,-500.0,0.0001,2]
[334670485,1723452632506,-500.0,0.0001,2]
[334670486,1723452632515,-500.0,0.0001,2]
[334670488,1723452632525,-500.0,0.0001,2]
[334670499,1723452632692,-500.0,0.0001,2]
[334670500,1723452632702,-500.0,0.0001,2]
[334670501,1723452632711,-500.0,0.0001,2]
[334670502,1723452632722,-500.0,0.0001,2]
[334670503,1723452632732,-500.0,0.0001,2]
[334670504,1723452632741,-500.0,0.0001,2]
[334670505,1723452632751,-500.0,0.0001,2]
[334670506,1723452632760,-500.0,0.0001,2]
[334670507,1723452632770,-500.0,0.0001,2]
[334670508,1723452632779,-503.31,0.0001,2]
[334670509,1723452632788,-500.0,0.0001,2]
[334670510,1723452632799,-500.0,0.0001,2]
[334670511,1723452632808,-500.0,0.0001,2]
[334670512,1723452632817,-500.0,0.0001,2]
[334670513,1723452632826,-500.0,0.0001,2]
[334670514,1723452632835,-500.0,0.0001,2]
[334670515,1723452632844,-500.0,0.0001,2]
[334670516,1723452632853,-500.0,0.0001,2]
[334670517,1723452632863,-500.0,0.0001,2]
[334670518,1723452632872,-500.0,0.0001,2]
[334670519,1723452632881,-500.0,0.0001,2]
[334670520,1723452632890,-500.0,0.0001,2]
[334670521,1723452632899,-500.0,0.0001,2]
[334670522,1723452632910,-500.0,0.0001,2]
[334670523,1723452632920,-500.0,0.0001,2]
[334670524,1723452632929,-500.0,0.0001,2]
[334670525,1723452632938,-500.0,0.0001,2]
[334670526,1723452632948,-500.0,0.0001,2]
[334670527,1723452632957,-500.0,0.0001,2]
[334670528,1723452632966,-500.0,0.0001,2]
[334670529,1723452632975,-500.0,0.0001,2]
[334670530,1723452632985,-500.0,0.0001,2]
[334670531,1723452632994,-500.0,0.0001,2]
[334670532,1723452633003,-500.0,0.0001,2]
[334670533,1723452633012,-648.61,0.0001,2]
[334670534,1723452633022,-500.0,0.0001,2]
[334670535,1723452633031,-500.0,0.0001,2]
[334670536,1723452633040,-500.0,0.0001,2]
[334670537,1723452633050,-500.0,0.0001,2]
[334670538,1723452633059,-500.0,0.0001,2]
[334670539,1723452633068,-500.0,0.0001,2]
[334670540,1723452633077,-500.0,0.0001,2]
[334670541,1723452633086,-500.0,0.0001,2]
[334670542,1723452633095,-500.0,0.0001,2]
[334670543,1723452633104,-500.0,0.0001,2]
[334670544,1723452633114,-500.0,0.0001,2]
[334670545,1723452633123,-500.0,0.0001,2]
[334670546,1723452633133,-579.9,0.0001,2]
[334670547,1723452633142,-653.64489815,0.0001,2]
[334670548,1723452633152,-499.99,0.0001,2]
[334670549,1723452633163,-2521.1,0.0001,2]
[334670550,1723452633172,-183.12,0.00010108,2]
[334670551,1723452633181,-179.19,0.00010133,2]
[334670552,1723452633190,-150.0,0.00010278,2]
[334670553,1723452633200,-7854.0776124,0.0001045,2]
[334670554,1723452633209,-518.99,0.00010451,2]
[334670555,1723452633219,-16193.27,0.00010475,2]
[334670556,1723452633228,-19999.99,0.00010475,2]
[334670557,1723452633237,-1373.6,0.00010475,2]
[334670558,1723452633247,-13171.86,0.00010475,2]
[334670559,1723452633257,-168.81,0.00010712,2]
[334670560,1723452633266,-200.0,0.00010776,2]
[334670561,1723452633275,-4794.7925,0.00010782,2]
[334670562,1723452633285,-283.914,0.00010796,2]
[334670563,1723452633294,-9141.1613,0.00010796,2]
[334670564,1723452633303,-336.3088,0.00010796,2]
[334670565,1723452633312,-946.9867,0.00010796,2]
[334670566,1723452633321,-19384.87203942,0.00010796,2]
[334670567,1723452633336,-9259.89576058,0.00010796,2]
[334670568,1723452633345,-1000.0,0.00010796,2]
[334670569,1723452633354,-420.0,0.00010881,2]
[334670570,1723452633363,-800.0,0.00010882,2]
[334670571,1723452633372,-1699.43759,0.0001089,2]
[334670572,1723452633381,-33938.0296,0.00010896,2]
[334670573,1723452633391,-22671.8793742,0.00010896,2]
[334670574,1723452633403,-364.013,0.00010896,2]
[334670575,1723452633477,-10742.58746219,0.00010896,2]
[334670576,1723452633499,-6503.98141772,0.00010896,2]
[334670577,1723452633511,-48127.3643985,0.00010896,2]
[334670578,1723452633523,-2962.57694208,0.00010896,2]
[334670579,1723452633546,-757.21613236,0.00010896,2]
[334670580,1723452633557,-3078.55932045,0.00010896,2]
[334670587,1723452638315,-689.05821815,0.00010896,2]
[334670588,1723452638327,-726.22550044,0.00010896,2]
[334670589,1723452638427,-2957.72213391,0.00010896,2]
[334670590,1723452638437,-252.22281563,0.000109,2]
[334670591,1723452638448,-747.77718437,0.000109,2]
[334670592,1723452638457,-4449.79378438,0.000109,2]
[334670593,1723452638468,-4583.2606,0.000109,2]
[334670594,1723452638479,-2400.0,0.000109,2]
[334670595,1723452638490,-1504.79987068,0.000109,2]
[334670596,1723452638593,-1247.38060304,0.000109,2]
[334670597,1723452638758,-701.89106013,0.000109,2]
[334670598,1723452638772,-5696.6441405,0.000109,2]
[334670599,1723452638784,-720.62291816,0.000109,2]
[334670614,1723452640312,-1060.86500547,0.000109,2]
[334670615,1723452640370,-85945.16571764,0.000109,2]
[334670616,1723452640379,-6578.015981,0.000109,2]
[334670617,1723452640389,-500.0,0.000109,2]
[334670618,1723452640399,-161.15251325,0.000109,2]
[334670619,1723452640408,-161.15251324,0.000109,2]
[334670620,1723452640424,-165.1649757,0.000109,2]
[334670621,1723452640434,-161.15251324,0.000109,2]
[334670622,1723452640443,-161.15251324,0.000109,2]
[334670623,1723452640453,-1000.0,0.000109,2]
[334670624,1723452640463,-805.89871788,0.000109,2]
[334670625,1723452640473,-250.0,0.00010959,2]
[334670626,1723452640482,-2000.0,0.00010959,2]
[334670627,1723452640490,-461.54,0.00010959,2]
[334670628,1723452640500,-199.99070683,0.00010973,2]
[334670629,1723452640510,-200.0,0.00010973,2]
[334670630,1723452640519,-231.42573218,0.00010973,2]
[334670631,1723452640529,-200.0,0.00010973,2]
[334670632,1723452640539,-155.24468221,0.00010973,2]
[334670633,1723452640548,-504.4428,0.00010989,2]
[334670634,1723452640558,-856.9683925,0.00010997,2]
[334670635,1723452640567,-2169.6950324,0.00010997,2]
[334670636,1723452640577,-399.7659381,0.00010997,2]
[334670637,1723452640586,-1163.0,0.00010997,2]
[334670638,1723452640595,-255.0,0.00010999,2]
[334670639,1723452640605,-622.0,0.00011,2]
[334670640,1723452640615,-1257.0,0.00011,2]
[334670641,1723452640624,-1583.0,0.00011,2]
[334670642,1723452640633,-1924.0,0.00011,2]
[334670643,1723452640643,-810.0,0.00011,2]
[334670644,1723452640652,-556.0,0.00011,2]
[334670645,1723452640663,-150.797,0.00011,2]
[334670647,1723452640673,-446.0,0.00011,2]
[334670649,1723452640682,-1137.0,0.00011,2]
[334670651,1723452640692,-677.337,0.00011,2]
[334670652,1723452640701,-150.0,0.00011,2]
[334670654,1723452640711,-1894.0,0.00011,2]
[334670656,1723452640722,-1136.0,0.00011,2]
[334670658,1723452640733,-3290.0,0.00011,2]
[334670660,1723452640743,-257.865,0.00011,2]
[334670662,1723452640752,-216.0,0.00011,2]
[334670663,1723452640761,-289.0,0.00011,2]
[334670665,1723452640773,-216.0,0.00011,2]
[334670668,1723452640783,-150.0,0.00011,2]
[334670669,1723452640792,-5132.0,0.00011,2]
[334670672,1723452640803,-156.085,0.00011,2]
[334670673,1723452640812,-163.0,0.00011,2]
[334670675,1723452640822,-265.723,0.00011,2]
[334670676,1723452640832,-209.076,0.00011,2]
[334670677,1723452640841,-163.751,0.00011,2]
[334670678,1723452640851,-5840.0,0.00011,2]
[334670679,1723452640860,-150.0,0.00011,2]
[334670680,1723452640870,-21751.0,0.00011,2]
[334670681,1723452640879,-1204.0,0.00011,2]
[334670682,1723452640889,-1672.0,0.00011,2]
[334670683,1723452640898,-525182.82911394,0.00011,2]
[334670684,1723452640908,-60484.09463585,0.00011,2]
[334670685,1723452640919,-946015.1640208,0.00011,2]
[334670686,1723452640929,-508132.94054362,0.00011,2]
[334670687,1723452640938,-328409.37715969,0.00011,2]
[334670688,1723452640948,-591969.51171823,0.00011,2]
[334670689,1723452640958,-1158534.25407329,0.00011,2]
[334670690,1723452640968,-705964.40366587,0.00011,2]
[334670691,1723452640978,-484941.81715711,0.00011,2]
[334670692,1723452640988,-163013.96563689,0.00011,2]
[334670693,1723452640997,-160912.38795639,0.00011,2]
[334670694,1723452641007,-420.0,0.00011,2]
[334670695,1723452641016,-44896.0,0.00011,2]
[334670696,1723452641026,-1130603.67628555,0.00011,2]
[334670697,1723452641048,-328.47396994,0.00011,2]
[334670698,1723452641060,-496.07624443,0.00011,2]
[334670699,1723452641072,-450.86203887,0.00011,2]
[334670700,1723452641084,-881.735,0.00011,2]
[334670772,1723452644146,-200.0,0.00010973,2]
[334670773,1723452644155,-150.0,0.00011,2]
[334670774,1723452644167,-217916.41132067,0.00011,2]
[334670781,1723452646799,-1076.0,0.00011,2]
[334670782,1723452646810,-101491.79290321,0.00011,2]
[334670783,1723452646823,-555.84439356,0.00011,2]
[334670784,1723452646835,-3648.9525255,0.00011,2]
[334670787,1723452681765,500.0,8.22e-05,2]
[334670788,1723452682362,500.0,8.22e-05,2]
[334670789,1723452700894,500.0,8.22e-05,2]
[334670797,1723452810820,150.0,0.00021739,120]
[334670799,1723452848839,7447.12142911,0.00023,120]
[334670800,1723452930771,150.0,0.00024606,120]
[334670802,1723453134804,150.0,8.219e-05,2]
[334670803,1723453134826,150.0,8.219e-05,2]
[334670804,1723453134849,213.57923345,8.219e-05,2]
[334670805,1723453134873,37.37076655,8.219e-05,2]
[334670807,1723453171244,150.0,0.0002531,120]
[334670808,1723453184901,500.0,8.22e-05,2]
[334670809,1723453202612,363.57923345,8.219e-05,2]
[334670811,1723453231271,150.0,0.00025665,120]
[334670812,1723453290721,150.0,0.00026548,120]
[334670815,1723453470792,150.0,0.00026132,120]
[334670818,1723453590773,150.0,0.00025462,120]
[334670819,1723453601086,150.0,9.616e-05,2]
[334670820,1723453601111,150.0,9.616e-05,2]
[334670821,1723453601134,150.0,9.616e-05,2]
[334670822,1723453601158,156.2328,9.616e-05,2]
[334670823,1723453602408,23293.7672,9.616e-05,2]
[334670828,1723453631218,183.13,9.61e-05,2]
[334670830,1723453650739,150.0,0.00026544,120]
[334670833,1723453711290,150.0,0.00025374,120]
[334670839,1723453769064,561.22,8.219e-05,2]
[334670840,1723453770868,150.0,0.00026358,120]
[334670842,1723453815841,250.0,9.609e-05,2]
[334670843,1723453830743,150.0,0.00025123,120]
[334670852,1723453831475,-200.0,9.654e-05,2]
[334670853,1723453831486,-207.73214544,9.682e-05,2]
[334670854,1723453831498,-2673.87845911,9.682e-05,2]
[334670855,1723453831507,-1074.43,9.682e-05,2]
[334670856,1723453831517,-1206.44,9.684e-05,2]
[334670857,1723453831526,-228.12,9.689e-05,2]
[334670858,1723453831535,-255.52533687,9.745e-05,2]
[334670859,1723453831549,-38.42466313,9.745e-05,2]
[334670860,1723453831559,-261.87533687,9.763e-05,2]
[334670861,1723453831570,-62.93366313,9.763e-05,2]
[334670862,1723453831580,-1000.0,9.776e-05,2]
[334670863,1723453831589,-300.0,9.863e-05,2]
[334670864,1723453831599,-500.0,9.864e-05,2]
[334670865,1723453831608,-500.0,9.864e-05,2]
[334670866,1723453831618,-500.0,9.864e-05,2]
[334670867,1723453831628,-503.0,9.864e-05,2]
[334670868,1723453831638,-2934.19,9.864e-05,2]
[334670869,1723453831648,-150.0,9.888e-05,2]
[334670870,1723453831658,-550.0,0.0001,2]
[334670871,1723453831667,-601.90325245,0.0001,2]
[334670872,1723453831677,-229.69,0.00010027,2]
[334670873,1723453831686,-299.99,0.00010027,2]
[334670874,1723453831695,-258.8,0.00010074,2]
[334670875,1723453831706,-193.95,0.00010111,2]
[334670876,1723453831715,-426.37,0.00010219,2]
[334670877,1723453831725,-426.37,0.00010219,2]
[334670878,1723453831735,-426.37,0.00010219,2]
[334670879,1723453831744,-425.77,0.00010219,2]
[334670880,1723453831754,-172.77,0.00010222,2]
[334670881,1723453831763,-561.22,0.00010459,2]
[334670882,1723453831773,-426.37,0.000105,2]
[334670883,1723453831783,-426.37,0.000106,2]
[334670884,1723453831793,-1367.0,0.000107,2]
[334670886,1723453831802,-150.0,0.00010721,2]
[334670887,1723453831811,-622.0,0.00010722,2]
[334670888,1723453831821,-1257.0,0.00010722,2]
[334670890,1723453831830,-446.0,0.00010722,2]
[334670892,1723453831839,-556.0,0.00010722,2]
[334670894,1723453831849,-810.0,0.00010722,2]
[334670895,1723453831858,-1137.0,0.00010722,2]
[334670898,1723453831868,-551.0,0.00010722,2]
[334670899,1723453831881,-1894.0,0.00010722,2]
[334670901,1723453831890,-3290.0,0.00010722,2]
[334670903,1723453831899,-1136.0,0.00010722,2]
[334670905,1723453831909,-247.0,0.00010722,2]
[334670907,1723453831918,-6754.10962753,0.00010731,2]
[334670909,1723453831927,-2969.42063569,0.00010796,2]
[334670911,1723453831939,-1661.1859856,0.00010796,2]
[334670914,1723453831954,-436.64173545,0.00010796,2]
[334670916,1723453831965,-643.97400247,0.00010796,2]
[334670918,1723453831977,-5229.66398431,0.00010796,2]
[334670919,1723453831989,-4196.1,0.00010796,2]
[334670920,1723453832014,-3256.74546623,0.00010796,2]
[334670921,1723453832025,-10713.02602082,0.00010796,2]
[334670922,1723453832037,-5272.63100802,0.00010796,2]
[334670923,1723453832048,-1444.14581354,0.00010796,2]
[334670924,1723453832058,-1022.98488966,0.00010796,2]
[334670925,1723453832070,-3675.16069498,0.00010796,2]
[334670926,1723453832081,-297.99594133,0.00010796,2]
[334670927,1723453832092,-7376.81680541,0.00010796,2]
[334670928,1723453832104,-261.15578167,0.00010796,2]
[334670929,1723453832115,-517.85068696,0.00010796,2]
[334670930,1723453832128,-312.75876885,0.00010796,2]
[334670931,1723453832139,-454.2225082,0.00010796,2]
[334670932,1723453832160,-251.88644517,0.00010796,2]
[334670933,1723453832171,-341.34701288,0.00010796,2]
[334670934,1723453837509,-697.22711276,0.00010796,2]
[334670935,1723453837520,-2651.5743,0.00010796,2]
[334670936,1723453837532,-1263.1381,0.000108,2]
[334670937,1723453837542,-420.0,0.00010849,2]
[334670938,1723453837554,-289.0,0.00010861,2]
[334670939,1723453837564,-2223.56351425,0.00010861,2]
[334670940,1723453837576,-426.35735425,0.00010861,2]
[334670941,1723453837588,-3190.0791315,0.00010861,2]
[334670942,1723453837599,-2465.56733349,0.00010861,2]
[334670943,1723453837612,-1414.5,0.00010861,2]
[334670944,1723453837625,-1251.93266651,0.00010861,2]
[334670945,1723453837635,-577.191522,0.00010861,2]
[334670946,1723453837704,-1094.808478,0.00010861,2]
[334670947,1723453837713,-21751.0,0.00010861,2]
[334670948,1723453837724,-1204.0,0.00010861,2]
[334670949,1723453837734,-3000.0,0.0001089,2]
[334670950,1723453837744,-1040.09939847,0.00010899,2]
[334670951,1723453837755,-12696.4289,0.000109,2]
[334670952,1723453837766,-168.91896574,0.000109,2]
[334670953,1723453837776,-153.0,0.00010959,2]
[334670954,1723453837785,-200.0,0.00010973,2]
[334670955,1723453837795,-200.0,0.00010973,2]
[334670956,1723453837804,-7318.6479506,0.00010997,2]
[334670957,1723453837813,-422.1900231,0.00010997,2]
[334670958,1723453837823,-318.2020848,0.00010997,2]
[334670959,1723453837832,-515.6923347,0.00010997,2]
[334670960,1723453837841,-2668.0479169,0.00010997,2]
[334670961,1723453837851,-1000.0,0.00010998,2]
[334670962,1723453837861,-500.0,0.00010999,2]
[334670963,1723453837870,-500.0,0.00010999,2]
[334670964,1723453837882,-500.0,0.00010999,2]
[334670965,1723453837891,-500.0,0.00010999,2]
[334670966,1723453837900,-500.0,0.00010999,2]
[334670967,1723453837910,-622.01431395,0.00010999,2]
[334670968,1723453837919,-500.0,0.00010999,2]
[334670969,1723453837928,-500.0,0.00010999,2]
[334670970,1723453837937,-500.0,0.00010999,2]
[334670971,1723453837946,-1583.0,0.00011,2]
[334670972,1723453837955,-1924.0,0.00011,2]
[334670973,1723453837964,-43217.68286546,0.00011,2]
[334670974,1723453837977,-28722.8141531,0.00011,2]
[334670975,1723453837988,-6430.39699736,0.00011,2]
[334670976,1723453838000,-7835.364,0.00011,2]
[334670977,1723453838012,-1173.65274454,0.00011,2]
[334670978,1723453838023,-4514.66406672,0.00011,2]
[334670980,1723453838035,-362.60725604,0.00011,2]
[334670982,1723453838046,-2602.71436071,0.00011,2]
[334670984,1723453838057,-563.23685147,0.00011,2]
[334671002,1723453838202,-257.82237684,0.00011,2]
[334671010,1723453838271,-590.05754824,0.00011,2]
[334671044,1723453839557,-786.688,0.00010861,2]
[334671045,1723453839567,-2057.98568354,0.00011,2]
[334671046,1723453839578,-650.0,0.00011,2]
[334671047,1723453839589,-730.55933782,0.00011,2]
[334671048,1723453839601,-514.47,0.00011,2]
[334671049,1723453839617,-1404.75547569,0.00011,2]
[334671050,1723453839629,-587.46169813,0.00011,2]
[334671051,1723453839640,-621.63078751,0.00011,2]
[334671052,1723453839662,-1275.2531778,0.00011,2]
[334671053,1723453839673,-347.833572,0.00011,2]